bitfinex/quotes_BTCUSD_20220202
["timestamp","ask_amount","ask_price","bid_price","bid_amount"]
[1643835975698,0.24862113,37423.0,37418.0,0.22866247]
[1643835975896,0.04,37423.0,37418.0,0.22866247]
[1643835976099,0.02051763,37430.0,37418.0,0.22866247]
[1643835976398,0.4,37419.0,37418.0,0.22866247]
[1643835976797,0.2246516,37427.0,37418.0,0.22866247]
[1643835977039,0.0572,37424.0,37418.0,0.22866247]
[1643835977240,0.6280736,37423.0,37420.0,0.00018283]
[1643835977441,0.89396883,37422.0,37420.0,0.00018283]
[1643835977639,2.08083012,37421.0,37420.0,0.00018283]
[1643835977839,1.5,37420.0,37418.0,0.2258453]
[1643835978040,2.15897799,37419.0,37418.0,0.2258453]
[1643835978243,2.44241914,37419.0,37418.0,0.2258453]
[1643835978441,0.353422,37419.0,37418.0,0.2258453]
[1643835978642,0.02189826,37434.0,37418.0,0.2258453]
[1643835978844,0.57205963,37433.0,37418.0,0.2258453]
[1643835979043,0.02189826,37434.0,37418.0,0.2248453]
[1643835979044,0.353422,37432.0,37418.0,0.2248453]
[1643835979241,0.353422,37433.0,37418.0,0.2248453]
[1643835979442,0.29222507,37428.0,37422.0,0.28955156]
[1643835979645,0.25909425,37432.0,37423.0,0.23689505]
[1643835979843,0.25909425,37432.0,37423.0,0.23463366]
[1643835980045,0.25909425,37432.0,37423.0,0.24389565]
[1643835980245,0.27562375,37433.0,37423.0,0.23098395]
[1643835980445,0.748,37440.0,37423.0,0.33018395]
[1643835980914,0.3819,37441.0,37423.0,0.33018395]
[1643835981615,0.27339999,37433.0,37423.0,0.0492]
[1643835982017,0.27339999,37433.0,37425.0,0.00269752]
[1643835982214,0.32339999,37433.0,37425.0,0.00269752]
[1643835982415,0.21723735,37429.0,37425.0,0.24631123]
[1643835982617,1.86142215,37431.0,37425.0,0.24631123]
[1643835983012,1.86142215,37431.0,37425.0,0.24361371]
[1643835983614,0.35825061,37427.0,37421.0,0.00269761]
[1643835983817,0.07569203,37425.0,37421.0,0.00269761]
[1643835984015,0.12569203,37425.0,37421.0,0.00269761]
[1643835984317,0.13359035,37435.0,37420.0,0.00017902]
[1643835984545,0.3819,37441.0,37422.0,0.066785]
[1643835984546,0.05,37434.0,37422.0,0.066785]
[1643835984843,0.3819,37441.0,37423.0,0.26005844]
[1643835985148,0.13357115,37440.0,37421.0,0.24782498]
[1643835985344,0.30429207,37432.0,37424.0,0.27143414]
[1643835985646,0.13357115,37440.0,37425.0,0.23300441]
[1643835985845,0.3819,37441.0,37426.0,0.0492]
[1643835986244,0.19970599,37436.0,37427.0,0.22580458]
[1643835986443,0.9933609,37441.0,37431.0,0.23072479]
[1643835986646,0.3871646,37441.0,37431.0,0.23072479]
[1643835987446,0.26597837,37436.0,37428.0,0.28561467]
[1643835987753,0.38275814,37436.0,37425.0,0.26632699]
[1643835987945,0.38275814,37436.0,37425.0,0.26902451]
[1643835988185,0.38275814,37436.0,37425.0,0.00269752]
[1643835988587,0.08140109,37428.0,37425.0,0.00269752]
[1643835988791,0.353422,37427.0,37425.0,0.00269752]
[1643835988988,0.403422,37427.0,37423.0,0.02110615]
[1643835989187,0.353422,37426.0,37423.0,0.02110615]
[1643835989790,0.47087087,37427.0,37424.0,0.30161389]
[1643835989989,0.353422,37426.0,37424.0,0.30161389]
[1643835990590,0.47087087,37427.0,37423.0,0.00017896]
[1643835990790,0.11679846,37427.0,37423.0,0.00017896]
[1643835991194,0.353422,37426.0,37423.0,0.00017896]
[1643835991395,0.11679846,37427.0,37423.0,0.00017896]
[1643835991596,1.74274008,37424.0,37423.0,0.00017896]
[1643835991797,2.14616208,37424.0,37423.0,0.00017896]
[1643835992044,2.22783208,37424.0,37419.0,0.0008533]
[1643835992244,0.42023838,37423.0,37419.0,0.0008533]
[1643835992445,0.21530276,37424.0,37419.0,0.0008533]
[1643835992446,0.08167,37424.0,37419.0,0.0008533]
[1643835992645,0.08167,37424.0,37419.0,0.00017891]
[1643835992845,0.08167,37424.0,37419.0,0.00085325]
[1643835993048,0.42882628,37428.0,37419.0,0.00085325]
[1643835993245,0.353422,37427.0,37419.0,0.28009848]
[1643835993447,0.42022151,37427.0,37419.0,0.28009848]
[1643835993645,0.353422,37426.0,37419.0,0.28009848]
[1643835993847,0.20954169,37422.0,37419.0,0.00017891]
[1643835994047,0.20954169,37422.0,37419.0,0.00085328]
[1643835994249,0.05,37422.0,37419.0,0.00085328]
[1643835994650,0.06680483,37424.0,37419.0,0.00085328]
[1643835995053,0.06680483,37424.0,37419.0,0.00017891]
[1643835995252,0.55104593,37423.0,37419.0,0.00085326]
[1643835995453,0.353422,37422.0,37419.0,0.00085326]
[1643835995688,0.25126694,37423.0,37419.0,0.00085326]
[1643835995889,0.05,37423.0,37419.0,0.00085326]
[1643835996086,0.21506389,37423.0,37419.0,0.00085326]
[1643835996288,0.06680483,37424.0,37419.0,0.00017891]
[1643835996485,0.06680483,37424.0,37419.0,0.00085325]
[1643835996685,0.353422,37423.0,37419.0,0.00085325]
[1643835996885,0.403422,37423.0,37419.0,0.00085325]
[1643835997087,1.253422,37422.0,37421.0,0.000179]
[1643835997489,2.10183644,37422.0,37421.0,0.000179]
[1643835997690,2.19335583,37422.0,37421.0,0.000179]
[1643835997893,2.24255583,37422.0,37421.0,0.000179]
[1643835998390,2.39255583,37422.0,37421.0,0.000179]
[1643835998588,2.29255583,37422.0,37421.0,0.000179]
[1643835998789,1.55103644,37422.0,37421.0,0.000179]
[1643836000542,1.60103644,37422.0,37421.0,0.000179]
[1643836000841,1.70290354,37422.0,37421.0,0.000179]
[1643836001044,1.65370354,37422.0,37421.0,0.000179]
[1643836001841,1.70370354,37422.0,37421.0,0.000179]
[1643836002243,1.70370354,37422.0,37419.0,0.000179]
[1643836002441,0.353422,37421.0,37419.0,0.00039096]
[1643836003489,0.353422,37421.0,37419.0,0.000179]
[1643836003888,0.55056796,37421.0,37419.0,0.000179]
[1643836004092,1.753422,37420.0,37419.0,0.000179]
[1643836004290,1.803422,37420.0,37419.0,0.000179]
[1643836005490,0.403422,37420.0,37419.0,0.000179]
[1643836005697,0.05,37420.0,37419.0,0.000179]
[1643836005892,0.06681154,37423.0,37419.0,0.000179]
[1643836006093,0.06679496,37426.0,37419.0,0.000179]
[1643836006692,0.27109322,37425.0,37419.0,0.000179]
[1643836006945,0.27109322,37425.0,37418.0,0.47338691]
[1643836007147,0.27109322,37425.0,37419.0,0.00067393]
[1643836007348,0.353422,37424.0,37419.0,0.00067393]
[1643836007546,0.53703314,37424.0,37419.0,0.00067393]
[1643836007847,0.18361114,37424.0,37419.0,0.00067393]
[1643836008247,0.18361114,37424.0,37418.0,0.22502432]
[1643836008445,0.18361114,37424.0,37419.0,0.00067392]
[1643836008646,0.06680545,37423.0,37419.0,0.28588662]
[1643836008948,0.20120001,37421.0,37419.0,0.28588662]
[1643836009145,0.25120001,37421.0,37418.0,0.22502432]
[1643836009350,0.353422,37420.0,37418.0,0.22502432]
[1643836009948,0.05,37421.0,37418.0,0.22502432]
[1643836010349,0.11680545,37423.0,37418.0,0.22502432]
[1643836010549,0.11680545,37423.0,37422.0,0.24645781]
[1643836011390,0.06680545,37423.0,37418.0,0.22502432]
[1643836011591,0.05,37422.0,37418.0,0.22502432]
[1643836012193,0.05,37422.0,37421.0,0.000179]
[1643836012388,2.11503209,37422.0,37421.0,0.000179]
[1643836012588,2.2018358,37422.0,37421.0,0.000179]
[1643836014443,2.46887723,37422.0,37421.0,0.000179]
[1643836014642,2.46887723,37422.0,37418.0,0.2248453]
[1643836014643,1.5,37421.0,37418.0,0.2000243]
[1643836014844,0.48706638,37420.0,37418.0,0.2000243]
[1643836015042,1.853422,37419.0,37418.0,0.2000243]
[1643836015243,1.953422,37419.0,37418.0,0.2000243]
[1643836015442,2.27900723,37419.0,37418.0,0.2000243]
[1643836015742,0.77900723,37419.0,37418.0,0.2000243]
[1643836015945,0.72900723,37419.0,37418.0,0.2000243]
[1643836016146,0.403422,37419.0,37418.0,0.2000243]
[1643836016342,0.05,37419.0,37418.0,0.2000243]
[1643836016745,0.18364438,37420.0,37418.0,0.2000243]
[1643836016942,0.953422,37419.0,37418.0,0.2000243]
[1643836017146,1.22641837,37419.0,37418.0,0.2000243]
[1643836019192,0.62641837,37419.0,37418.0,0.2000243]
[1643836020293,0.18364438,37420.0,37418.0,0.2000243]
[1643836021596,0.93580789,37419.0,37418.0,0.2000243]
[1643836021795,1.33922989,37419.0,37418.0,0.2000243]
[1643836022046,1.33922989,37419.0,37418.0,0.20019963]
[1643836022643,1.61850333,37419.0,37418.0,0.20019963]
[1643836024649,0.71850333,37419.0,37418.0,0.20019963]
[1643836024846,0.43922989,37419.0,37418.0,0.20019963]
[1643836025047,0.83922989,37419.0,37418.0,0.20019963]
[1643836025692,1.09631381,37419.0,37418.0,0.20019963]
[1643836025993,1.17681781,37419.0,37418.0,0.20019963]
[1643836027393,1.17590408,37419.0,37418.0,0.20019963]
[1643836027593,1.16830408,37419.0,37418.0,0.20019963]
[1643836029296,1.16830408,37419.0,37418.0,0.19519963]
[1643836029744,0.51122016,37419.0,37418.0,0.19519963]
[1643836029944,0.44490827,37419.0,37418.0,0.19519963]
[1643836030142,0.39490827,37419.0,37418.0,0.19519963]
[1643836030946,0.04148627,37419.0,37418.0,0.19519963]
[1643836031343,0.13364438,37420.0,37418.0,0.19519963]
[1643836033045,0.18364438,37420.0,37418.0,0.19519963]
[1643836033890,0.18338038,37420.0,37418.0,0.19519963]
[1643836035293,0.703422,37419.0,37418.0,0.19519963]
[1643836035492,0.353422,37419.0,37418.0,0.19519963]
[1643836035894,0.18338038,37420.0,37418.0,0.19519963]
[1643836036297,0.05,37420.0,37418.0,0.19519963]
[1643836036497,0.11682112,37422.0,37418.0,0.19079963]
[1643836036699,0.06682112,37422.0,37418.0,0.19079963]
[1643836036952,0.11682112,37422.0,37418.0,0.19079963]
[1643836038955,0.353422,37421.0,37418.0,0.19079963]
[1643836039353,0.11682112,37422.0,37418.0,0.19079963]
[1643836040164,0.22164506,37430.0,37418.0,0.19079963]
[1643836040357,0.02068233,37431.0,37419.0,0.0492]
[1643836040358,0.13359032,37429.0,37419.0,0.0492]
[1643836040555,0.22164506,37428.0,37423.0,0.26650397]
[1643836040802,0.22293598,37426.0,37419.0,0.0492]
[1643836041201,0.27293598,37426.0,37419.0,0.0492]
[1643836042002,0.05,37426.0,37420.0,0.00017529]
[1643836042400,0.22164506,37428.0,37420.0,0.00017529]
[1643836042401,0.27164506,37428.0,37420.0,0.00017529]
[1643836043102,0.27255858,37426.0,37420.0,0.00017529]
[1643836043301,0.32255858,37426.0,37420.0,0.00017529]
[1643836043501,0.05,37426.0,37420.0,0.06696529]
[1643836043700,0.04797478,37426.0,37420.0,0.06696529]
[1643836043902,0.06679175,37427.0,37420.0,0.06696529]
[1643836044541,0.06679175,37427.0,37420.0,0.30734958]
[1643836044542,0.04679175,37427.0,37420.0,0.30734958]
[1643836045141,0.04679175,37427.0,37424.0,0.30627777]
[1643836045745,0.04679175,37427.0,37420.0,0.06696529]
[1643836046348,0.19402524,37426.0,37420.0,0.00017529]
[1643836046549,0.05,37429.0,37420.0,0.00017529]
[1643836046550,0.13360081,37425.0,37420.0,0.00017529]
[1643836046753,0.80307612,37424.0,37420.0,0.00017529]
[1643836046948,0.353422,37423.0,37418.0,0.19079955]
[1643836047147,0.63424675,37422.0,37418.0,0.19079955]
[1643836047347,2.44868721,37421.0,37418.0,0.19079955]
[1643836047546,0.353431,37420.0,37418.0,0.19079955]
[1643836047752,0.403431,37420.0,37418.0,0.19079955]
[1643836047949,0.353431,37419.0,37418.0,0.19079955]
[1643836048796,0.95157028,37419.0,37418.0,0.19079955]
[1643836049197,0.353431,37419.0,37418.0,0.19071955]
[1643836049799,2.14525621,37421.0,37418.0,0.19071955]
[1643836050003,0.05,37421.0,37418.0,0.19071955]
[1643836050199,0.06681356,37422.0,37418.0,0.19071955]
[1643836051940,0.26104946,37422.0,37418.0,0.19071955]
[1643836052141,0.11681356,37422.0,37418.0,0.19071955]
[1643836052949,0.1335962,37426.0,37418.0,0.23991955]
[1643836053143,0.06679532,37425.0,37418.0,0.23991955]
[1643836053346,0.09078315,37432.0,37418.0,0.28991955]
[1643836053546,0.1968925,37431.0,37418.0,0.28991955]
[1643836053843,0.1968925,37431.0,37419.0,0.34639841]
[1643836053844,0.21885683,37429.0,37419.0,0.34639841]
[1643836054045,0.33565483,37429.0,37419.0,0.34639841]
[1643836054444,0.26885683,37429.0,37419.0,0.34639841]
[1643836055244,0.26885683,37429.0,37421.0,0.31351809]
[1643836055445,0.06679089,37427.0,37421.0,0.31351809]
[1643836056700,0.06679089,37427.0,37421.0,0.31369336]
[1643836057700,0.13358312,37430.0,37421.0,0.31369336]
[1643836057898,0.00067113,37432.0,37422.0,0.066788]
[1643836058699,0.13400122,37434.0,37427.0,0.27738928]
[1643836058901,0.00067117,37432.0,37427.0,0.39416928]
[1643836059450,0.00067117,37432.0,37428.0,0.0535]
[1643836059850,0.00043,37434.0,37428.0,0.0535]
[1643836060249,0.0006712,37432.0,37428.0,0.0535]
[1643836060451,0.0006712,37432.0,37428.0,0.187044]
[1643836061054,0.00043,37434.0,37428.0,0.187044]
[1643836061453,0.0006712,37432.0,37428.0,0.0535]
[1643836061950,0.0006712,37432.0,37429.0,0.00017512]
[1643836062151,0.2589322,37431.0,37430.0,0.0535]
[1643836062550,0.00043,37434.0,37429.0,0.00017512]
[1643836062551,0.0006712,37432.0,37429.0,0.00017512]
[1643836063598,0.30159811,37433.0,37429.0,0.00017512]
[1643836063799,0.0006712,37432.0,37429.0,0.00017512]
[1643836064696,0.06677869,37433.0,37429.0,0.00017512]
[1643836065096,0.0006712,37432.0,37429.0,0.00017512]
[1643836065697,0.27087738,37431.0,37429.0,0.00017512]
[1643836066098,0.0006712,37432.0,37429.0,0.00017512]
[1643836066696,0.0006712,37432.0,37427.0,0.13371909]
[1643836067152,0.06677869,37433.0,37427.0,0.13371909]
[1643836067448,0.0006712,37432.0,37427.0,0.13371909]
[1643836068252,0.08566981,37431.0,37427.0,0.13371909]
[1643836068451,0.15245413,37431.0,37427.0,0.13371909]
[1643836068654,0.06678432,37431.0,37427.0,0.13371909]
[1643836069153,0.0006712,37432.0,37427.0,0.13371909]
[1643836069550,0.53393083,37434.0,37427.0,0.13371909]
[1643836069752,0.0006712,37432.0,37427.0,0.13371909]
[1643836070153,0.00057707,37432.0,37427.0,0.13371909]
[1643836070694,0.06678085,37433.0,37427.0,0.13371909]
[1643836071094,0.06178085,37433.0,37430.0,0.23196298]
[1643836072696,0.09535549,37432.0,37429.0,0.00017512]
[1643836072897,0.14535549,37432.0,37429.0,0.00017512]
[1643836074541,0.14602669,37432.0,37429.0,0.00017512]
[1643836075645,0.14535549,37432.0,37429.0,0.00017512]
[1643836075845,0.14602669,37432.0,37429.0,0.00017512]
[1643836076744,0.14535549,37432.0,37426.0,0.29940811]
[1643836076952,0.0506712,37432.0,37426.0,0.36619011]
[1643836077148,0.0006712,37432.0,37426.0,0.36619011]
[1643836077345,0.0006712,37432.0,37426.0,0.41619011]
[1643836077947,0.00043,37434.0,37426.0,0.41619011]
[1643836078200,0.10344484,37434.0,37426.0,0.41619011]
[1643836078400,0.0006712,37431.0,37426.0,0.41619011]
[1643836079204,0.05043,37434.0,37426.0,0.41619011]
[1643836079400,0.00062911,37430.0,37426.0,0.41619011]
[1643836079902,0.00062911,37430.0,37426.0,0.36619011]
[1643836080101,0.00062911,37430.0,37426.0,0.29940811]
[1643836080305,0.44072315,37434.0,37426.0,0.00017509]
[1643836080306,0.49129013,37434.0,37426.0,0.00017509]
[1643836080512,0.54129013,37434.0,37426.0,0.00017509]
[1643836080704,0.00062911,37430.0,37426.0,0.00017509]
[1643836080903,0.353431,37429.0,37426.0,0.00017509]
[1643836081103,1.5,37427.0,37420.0,0.01463838]
[1643836081303,0.27082823,37421.0,37420.0,0.01463838]
[1643836081505,0.62425923,37421.0,37420.0,0.01463838]
[1643836082149,0.62425923,37421.0,37419.0,0.00062925]
[1643836082347,0.353431,37420.0,37419.0,0.00062925]
[1643836082548,0.44026762,37420.0,37419.0,0.00062925]
[1643836082750,0.63580509,37420.0,37418.0,0.1905443]
[1643836082947,1.24523655,37419.0,37418.0,0.19117353]
[1643836083146,1.053431,37419.0,37418.0,0.19117353]
[1643836083349,1.103431,37419.0,37418.0,0.19117353]
[1643836083548,0.403431,37419.0,37418.0,0.19117353]
[1643836083748,0.59932525,37419.0,37418.0,0.19117353]
[1643836083950,0.59932525,37419.0,37418.0,0.1905443]
[1643836084149,1.91403222,37418.0,37417.0,0.00063197]
[1643836084351,2.26746322,37418.0,37417.0,0.00063197]
[1643836084548,2.31746322,37418.0,37417.0,0.00063197]
[1643836084951,2.38429122,37418.0,37417.0,0.00063197]
[1643836085150,2.38429122,37418.0,37416.0,0.191186]
[1643836085350,0.91472227,37417.0,37416.0,0.19181797]
[1643836085550,0.56472227,37417.0,37416.0,0.19181797]
[1643836085797,0.65,37417.0,37416.0,0.19181797]
[1643836085999,1.003431,37417.0,37416.0,0.19181797]
[1643836086398,1.003431,37417.0,37416.0,0.191186]
[1643836088500,1.553431,37417.0,37416.0,0.191186]
[1643836090251,1.003431,37417.0,37416.0,0.191186]
[1643836090452,0.353431,37417.0,37416.0,0.191186]
[1643836090653,0.31730007,37418.0,37416.0,0.191186]
[1643836091254,0.31730007,37418.0,37416.0,0.192186]
[1643836091755,0.20047707,37418.0,37416.0,0.192186]
[1643836091956,0.06680828,37420.0,37416.0,0.192186]
[1643836092155,2.37660071,37428.0,37416.0,0.19235772]
[1643836092353,2.24298071,37428.0,37416.0,0.19235772]
[1643836092552,2.24298071,37428.0,37416.0,0.24298953]
[1643836092752,0.21252648,37422.0,37416.0,0.19298953]
[1643836093211,0.26252648,37422.0,37416.0,0.19298953]
[1643836093612,0.26252648,37422.0,37416.0,0.19235772]
[1643836093812,0.26252648,37422.0,37417.0,0.00063181]
[1643836094016,0.06680782,37421.0,37417.0,0.00063181]
[1643836094614,0.353431,37420.0,37417.0,0.00063181]
[1643836094816,0.05,37420.0,37416.0,0.19235772]
[1643836095115,0.05,37420.0,37417.0,0.00063181]
[1643836095317,1.79463111,37418.0,37417.0,0.00063181]
[1643836095516,2.19806211,37418.0,37417.0,0.00063181]
[1643836095914,2.19806211,37418.0,37416.0,0.19235772]
[1643836096115,1.853431,37417.0,37416.0,0.19298953]
[1643836096717,1.853431,37417.0,37416.0,0.19281781]
[1643836097150,1.853431,37417.0,37416.0,0.192186]
[1643836097849,1.853431,37417.0,37416.0,0.187186]
[1643836098053,1.5,37415.0,37414.0,0.002]
[1643836098250,1.853431,37415.0,37414.0,0.002]
[1643836098450,1.2,37414.0,37411.0,0.00935227]
[1643836098653,0.54821028,37413.0,37411.0,0.00935227]
[1643836098851,1.85389494,37412.0,37411.0,0.00935227]
[1643836099351,2.07796492,37412.0,37411.0,0.00935227]
[1643836099551,2.07796492,37412.0,37410.0,0.00035227]
[1643836099552,1.2,37411.0,37410.0,0.00035227]
[1643836099754,0.45819132,37411.0,37410.0,0.00035227]
[1643836099953,0.96816353,37411.0,37410.0,0.00035227]
[1643836100150,0.96294583,37411.0,37410.0,0.00035227]
[1643836100807,0.85818551,37411.0,37410.0,0.00035227]
[1643836102213,0.353431,37411.0,37410.0,0.00035227]
[1643836102614,0.56314957,37411.0,37410.0,0.00035227]
[1643836106450,0.61664957,37411.0,37410.0,0.00035227]
[1643836106949,0.61664957,37411.0,37410.0,0.00051722]
[1643836107149,1.66664957,37411.0,37410.0,0.00051722]
[1643836109501,0.406931,37411.0,37410.0,0.00051722]
[1643836109702,0.0535,37411.0,37410.0,0.00051722]
[1643836110101,1.0035,37411.0,37410.0,0.00051722]
[1643836110304,1.356931,37411.0,37410.0,0.00051722]
[1643836111303,1.906931,37411.0,37410.0,0.00042478]
[1643836111803,1.97377125,37411.0,37409.0,0.00067138]
[1643836112050,2.33239623,37410.0,37409.0,0.00067138]
[1643836112246,1.5,37409.0,37408.0,0.0011]
[1643836112446,1.973772,37409.0,37408.0,0.0011]
[1643836112846,1.920272,37409.0,37408.0,0.0011]
[1643836113345,1.920272,37409.0,37403.0,0.0012]
[1643836113346,0.23729491,37404.0,37403.0,0.0012]
[1643836114147,0.23729491,37404.0,37403.0,0.0005]
[1643836114348,0.23729491,37404.0,37402.0,0.00367142]
[1643836114349,0.49893269,37404.0,37400.0,0.02447142]
[1643836114549,0.08315688,37403.0,37400.0,0.02447142]
[1643836114751,0.32160808,37402.0,37400.0,0.02447142]
[1643836114952,2.07566044,37401.0,37400.0,0.02447142]
[1643836115153,0.406931,37401.0,37400.0,0.02447142]
[1643836115350,1.356931,37401.0,37400.0,0.01947142]
[1643836115549,1.70668891,37401.0,37400.0,0.01947142]
[1643836116395,1.56685296,37399.0,37397.0,0.001]
[1643836116596,0.406931,37398.0,37397.0,0.001]
[1643836117197,0.63286779,37398.0,37397.0,0.001]
[1643836117596,0.89286779,37398.0,37396.0,0.0041]
[1643836117795,1.56977564,37397.0,37396.0,0.0041]
[1643836117996,1.62327564,37397.0,37396.0,0.0041]
[1643836118203,1.62327564,37397.0,37385.0,0.02009395]
[1643836118204,1.5,37395.0,37385.0,0.01009395]
[1643836118401,0.69508138,37394.0,37385.0,0.01009395]
[1643836118599,0.22009164,37392.0,37385.0,0.01009395]
[1643836118799,2.30156518,37386.0,37385.0,9.395e-05]
[1643836119002,1.5,37385.0,37380.0,0.00029395]
[1643836119202,0.62821538,37384.0,37382.0,0.00268638]
[1643836119455,2.07471538,37383.0,37380.0,0.00029395]
[1643836119752,0.406931,37382.0,37380.0,0.00029395]
[1643836119952,1.05,37380.0,37372.0,0.12783788]
[1643836120154,0.0535,37379.0,37372.0,0.22128438]
[1643836120456,0.53233443,37386.0,37371.0,0.13207114]
[1643836120753,0.53233443,37386.0,37371.0,0.18207114]
[1643836120954,0.53233443,37386.0,37371.0,0.08207114]
[1643836120955,0.18725338,37385.0,37371.0,0.08207114]
[1643836121152,0.10342632,37382.0,37374.0,0.24994081]
[1643836121552,0.10342632,37382.0,37373.0,0.05]
[1643836121754,0.10342632,37382.0,37371.0,0.08207114]
[1643836121952,0.10342632,37382.0,37371.0,0.03207114]
[1643836122551,0.28589217,37377.0,37371.0,0.03207114]
[1643836122753,0.08036186,37375.0,37371.0,0.03207114]
[1643836123197,0.06688451,37377.0,37371.0,0.03207114]
[1643836123399,0.2187174,37381.0,37371.0,0.03207114]
[1643836123703,0.2187174,37381.0,37371.0,0.02707114]
[1643836123898,0.2187174,37381.0,37374.0,0.00067157]
[1643836124299,0.5270793,37381.0,37374.0,0.00067157]
[1643836124700,0.08068444,37375.0,37374.0,0.00067157]
[1643836124899,0.5270793,37381.0,37371.0,0.02707114]
[1643836125303,0.22600906,37372.0,37371.0,0.02707114]
[1643836126306,0.30473022,37372.0,37371.0,0.02707114]
[1643836126954,0.19306843,37372.0,37371.0,0.02707114]
[1643836127349,0.24814692,37375.0,37371.0,0.02707114]
[1643836127953,0.06688607,37377.0,37371.0,0.02707114]
[1643836128354,0.25561799,37374.0,37371.0,0.02707114]
[1643836128653,0.09134078,37376.0,37372.0,0.00020772]
[1643836128856,0.22213623,37373.0,37372.0,0.00020772]
[1643836129254,0.19312028,37375.0,37372.0,0.00020772]
[1643836129456,0.21502153,37380.0,37372.0,0.00020772]
[1643836129656,0.21075486,37383.0,37371.0,0.02707114]
[1643836129856,0.0535,37381.0,37371.0,0.2429824]
[1643836130061,0.01871787,37383.0,37371.0,0.2929824]
[1643836130062,0.0855944,37383.0,37371.0,0.2929824]
[1643836130255,0.0855944,37383.0,37373.0,0.25441408]
[1643836130256,0.314714,37383.0,37373.0,0.25441408]
[1643836130454,0.07882278,37379.0,37372.0,0.001]
[1643836130715,0.353431,37378.0,37372.0,0.001]
[1643836130905,0.2202302,37377.0,37372.0,0.001]
[1643836131104,0.353431,37376.0,37372.0,0.001]
[1643836131406,1.14910715,37373.0,37372.0,0.001]
[1643836131603,0.69361713,37373.0,37372.0,0.001]
[1643836132203,0.69361713,37373.0,37372.0,0.00116909]
[1643836132603,0.91384733,37373.0,37372.0,0.00116909]
[1643836132806,2.73734733,37373.0,37372.0,0.00116909]
[1643836133005,1.38734733,37373.0,37372.0,0.00116909]
[1643836133405,1.63179288,37373.0,37372.0,0.00116909]
[1643836133808,1.16711713,37373.0,37372.0,0.00116909]
[1643836134853,1.11361713,37373.0,37372.0,0.00116909]
[1643836135058,0.773431,37373.0,37372.0,0.00116909]
[1643836135256,0.42,37373.0,37372.0,0.00116909]
[1643836136356,0.0668916,37376.0,37372.0,0.00116909]
[1643836136357,0.22925685,37374.0,37372.0,0.00116909]
[1643836136558,0.0668916,37376.0,37372.0,0.00116909]
[1643836136955,0.353431,37375.0,37369.0,0.001]
[1643836137160,0.353431,37375.0,37372.0,8.07e-06]
[1643836137161,1.77194199,37374.0,37372.0,8.07e-06]
[1643836137359,0.74563385,37373.0,37372.0,8.07e-06]
[1643836137560,0.84913385,37373.0,37372.0,8.07e-06]
[1643836137759,0.57890365,37373.0,37372.0,8.07e-06]
[1643836138063,0.57890365,37373.0,37365.0,0.01]
[1643836138299,0.26990773,37368.0,37365.0,0.01]
[1643836138500,0.353431,37367.0,37365.0,0.01]
[1643836139104,0.05,37367.0,37365.0,0.01]
[1643836139301,0.05,37367.0,37365.0,0.005]
[1643836139501,0.11690216,37370.0,37365.0,0.005]
[1643836139703,0.06690216,37370.0,37365.0,0.005]
[1643836139903,0.77728221,37377.0,37365.0,0.005]
[1643836140107,0.77728221,37377.0,37372.0,0.28461844]
[1643836140305,0.27910624,37375.0,37372.0,0.28461844]
[1643836140503,0.353431,37374.0,37365.0,0.055]
[1643836140705,0.27910624,37375.0,37365.0,0.005]
[1643836140906,0.06689221,37374.0,37365.0,0.005]
[1643836141504,0.06689221,37374.0,37372.0,0.000234]
[1643836141707,0.43966165,37377.0,37372.0,0.000234]
[1643836141975,0.43966165,37377.0,37373.0,0.15096406]
[1643836142361,0.0006679,37379.0,37375.0,1.5]
[1643836142562,0.01836732,37377.0,37376.0,1.772832]
[1643836142763,0.0006679,37379.0,37377.0,0.5]
[1643836142965,0.00026025,37385.0,37377.0,0.5]
[1643836142966,0.00026025,37385.0,37378.0,1.5535]
[1643836143164,0.00026025,37385.0,37383.0,0.09971684]
[1643836143462,0.00026025,37385.0,37384.0,1.27037459]
[1643836143662,0.00026025,37385.0,37384.0,0.32037459]
[1643836143863,0.00026025,37385.0,37384.0,0.0535]
[1643836144063,0.00026025,37385.0,37384.0,0.34691807]
[1643836145706,0.00026025,37385.0,37377.0,0.0535]
[1643836145911,0.00026025,37385.0,37372.0,0.053734]
[1643836146107,0.00026025,37385.0,37372.0,0.000234]
[1643836146306,0.27361296,37382.0,37375.0,0.21581851]
[1643836146508,0.00026025,37385.0,37372.0,0.000234]
[1643836146509,0.35235865,37383.0,37372.0,0.000234]
[1643836146713,0.35235865,37383.0,37378.0,0.27879395]
[1643836146714,0.00046096,37382.0,37378.0,0.27879395]
[1643836147109,0.00046096,37382.0,37372.0,0.000234]
[1643836147307,0.00046096,37382.0,37372.0,0.067105]
[1643836147609,0.21241003,37380.0,37372.0,0.067105]
[1643836147810,0.21241003,37380.0,37372.0,0.000234]
[1643836147811,0.19330673,37379.0,37372.0,0.000234]
[1643836148010,0.353431,37378.0,37376.0,0.05691677]
[1643836148210,0.26886791,37377.0,37376.0,0.0188878]
[1643836148610,0.55573102,37377.0,37376.0,0.0188878]
[1643836148810,1.10781271,37377.0,37376.0,0.0188878]
[1643836149208,1.5,37376.0,37365.0,0.005]
[1643836149467,0.219696,37375.0,37365.0,0.005]
[1643836149664,0.78762474,37366.0,37365.0,0.005]
[1643836149863,0.219696,37373.0,37365.0,0.005]
[1643836150062,0.09079671,37369.0,37365.0,0.005]
[1643836150263,1.23315245,37368.0,37365.0,0.005]
[1643836150465,0.42034474,37367.0,37365.0,0.005]
[1643836150767,1.73264863,37366.0,37365.0,0.005]
[1643836151169,1.5,37365.0,37362.0,0.00118042]
[1643836151367,0.573127,37364.0,37361.0,0.00718042]
[1643836151567,1.89617831,37362.0,37361.0,0.00718042]
[1643836151762,1.11356587,37362.0,37361.0,0.00718042]
[1643836151968,1.01925878,37362.0,37361.0,0.00718042]
[1643836153227,0.96925878,37362.0,37361.0,0.00718042]
[1643836153429,0.61582778,37362.0,37361.0,0.00718042]
[1643836154635,1.36925878,37362.0,37361.0,0.00718042]
[1643836154833,1.5,37360.0,37358.0,0.002]
[1643836155038,0.353431,37359.0,37358.0,0.002]
[1643836155832,0.6827473,37362.0,37358.0,0.002]
[1643836156034,0.31395656,37362.0,37358.0,0.002]
[1643836156233,0.06691389,37367.0,37358.0,0.002]
[1643836156432,0.1542129,37370.0,37358.0,0.002]
[1643836156631,0.02039089,37370.0,37358.0,0.002]
[1643836156831,0.25859831,37367.0,37360.0,0.26889007]
[1643836157057,0.25859831,37367.0,37363.0,0.2906953]
[1643836157258,0.06690523,37368.0,37363.0,0.2906953]
[1643836157455,0.06660756,37368.0,37363.0,0.2806953]
[1643836157656,0.06616152,37368.0,37361.0,0.00016577]